[Event "World Women Teams  Championship"]
[Site "Sitges, Spain"]
[Date "2021.09.28"]
[Round "4.7"]
[White "Ushenina, Anna"]
[Black "Kamalidenova, Meruert"]
[Result "0-1"]
[TimeControl "40+10"]
[WhiteElo "2418"]
[BlackElo "1984"]

1. d4 {[%clk 00:45:17]} {[%emt 00:00:02]} Nf6 {[%clk 00:45:16]} {[%emt
00:00:04]} 2. c4 {[%clk 00:45:26]} {[%emt 00:00:02]} g6 {[%clk 00:45:23]}
{[%emt 00:00:02]} 3. g3 {[%clk 00:45:34]} {[%emt 00:00:02]} c6 {[%clk
00:45:16]} {[%emt 00:00:17]} 4. Bg2 {[%clk 00:45:32]} {[%emt 00:00:13]} d5
{[%clk 00:45:23]} {[%emt 00:00:02]} 5. Nf3 {[%clk 00:44:19]} {[%emt 00:01:23]}
Bg7 {[%clk 00:45:29]} {[%emt 00:00:04]} 6. O-O {[%clk 00:44:13]} {[%emt
00:00:16]} O-O {[%clk 00:45:36]} {[%emt 00:00:04]} 7. Ne5 {[%clk 00:44:12]}
{[%emt 00:00:12]} Ng4 {[%clk 00:43:09]} {[%emt 00:02:36]} 8. cxd5 {[%clk
00:36:24]} {[%emt 00:07:59]} Nxe5 {[%clk 00:40:27]} {[%emt 00:02:52]} 9. dxe5
{[%clk 00:36:27]} {[%emt 00:00:08]} Bxe5 {[%clk 00:40:23]} {[%emt 00:00:13]} 10.
Nc3 {[%clk 00:34:41]} {[%emt 00:01:56]} cxd5 {[%clk 00:39:32]} {[%emt
00:01:01]} 11. Nxd5 {[%clk 00:30:52]} {[%emt 00:03:59]} Nc6 {[%clk 00:38:03]}
{[%emt 00:01:39]} 12. Bh6 {[%clk 00:26:38]} {[%emt 00:04:24]} Re8 {[%clk
00:36:20]} {[%emt 00:01:53]} 13. Qa4 {[%clk 00:25:19]} {[%emt 00:01:29]} Qa5
{[%clk 00:32:45]} {[%emt 00:03:45]} 14. Qxa5 {[%clk 00:20:04]} {[%emt
00:05:26]} Nxa5 {[%clk 00:32:52]} {[%emt 00:00:03]} 15. Bf4 {[%clk 00:19:19]}
{[%emt 00:00:55]} Bxf4 {[%clk 00:31:09]} {[%emt 00:01:53]} 16. gxf4 {[%clk
00:19:27]} {[%emt 00:00:02]} Rb8 {[%clk 00:30:56]} {[%emt 00:00:23]} 17. Rac1
{[%clk 00:18:46]} {[%emt 00:00:52]} Bg4 {[%clk 00:29:23]} {[%emt 00:01:42]} 18.
b4 {[%clk 00:14:19]} {[%emt 00:04:38]} Nc6 {[%clk 00:28:54]} {[%emt 00:00:38]}
19. e3 {[%clk 00:14:27]} {[%emt 00:00:02]} Kf8 {[%clk 00:25:09]} {[%emt
00:03:55]} 20. a3 {[%clk 00:14:21]} {[%emt 00:00:16]} Red8 {[%clk 00:23:30]}
{[%emt 00:01:48]} 21. Rc5 {[%clk 00:12:59]} {[%emt 00:01:32]} h5 {[%clk
00:19:33]} {[%emt 00:04:08]} 22. Rfc1 {[%clk 00:12:11]} {[%emt 00:00:58]} e5
{[%clk 00:17:19]} {[%emt 00:02:23]} 23. h3 {[%clk 00:09:58]} {[%emt 00:02:24]}
Bf5 {[%clk 00:15:48]} {[%emt 00:01:41]} 24. R1c3 {[%clk 00:06:33]} {[%emt
00:03:35]} exf4 {[%clk 00:13:26]} {[%emt 00:02:32]} 25. Nxf4 {[%clk 00:06:41]}
{[%emt 00:00:02]} Rd1+ {[%clk 00:12:26]} {[%emt 00:01:11]} 26. Kh2 {[%clk
00:06:49]} {[%emt 00:00:01]} Rd2 {[%clk 00:11:50]} {[%emt 00:00:46]} 27. Kg3
{[%clk 00:02:35]} {[%emt 00:04:24]} h4+ 28. Kxh4 {[%clk 00:02:44]} Rxf2 {[%clk
00:10:29]} {[%emt 00:00:05]} 29. Kg3 {[%clk 00:02:53]} Ra2 {[%clk 00:09:28]}
{[%emt 00:01:10]} 30. h4 {[%clk 00:02:44]} {[%emt 00:00:21]} Ne7 {[%clk
00:05:43]} {[%emt 00:03:55]} 31. Rc7 {[%clk 00:01:22]} {[%emt 00:01:32]} Rd8
{[%clk 00:05:04]} {[%emt 00:00:49]} 32. e4 {[%clk 00:01:14]} {[%emt 00:00:17]}
Rxg2+ {[%clk 00:03:00]} {[%emt 00:02:15]} 33. Nxg2 {[%clk 00:00:26]} {[%emt
00:00:58]} Bxe4 {[%clk 00:02:51]} {[%emt 00:00:19]} 34. Ne3 {[%clk 00:00:35]}
a6 {[%clk 00:02:12]} {[%emt 00:00:50]} 35. R7c5 {[%clk 00:00:23]} {[%emt
00:00:21]} Bc6 {[%clk 00:02:01]} {[%emt 00:00:21]} 36. Rc2 {[%clk 00:00:24]}
{[%emt 00:00:10]} Rd3 {[%clk 00:01:53]} {[%emt 00:00:18]} 37. R5c3 {[%clk
00:00:33]} {[%emt 00:00:01]} Nf5+ {[%clk 00:01:50]} {[%emt 00:00:13]} 38. Kf2
{[%clk 00:00:35]} {[%emt 00:00:08]} Nxe3 {[%clk 00:01:51]} {[%emt 00:00:10]} 39.
Rxd3 {[%clk 00:00:39]} {[%emt 00:00:05]} Nxc2 {[%clk 00:01:59]} {[%emt
00:00:01]} 40. Kg3 {[%clk 00:00:24]} {[%emt 00:00:26]} Kg7 {[%clk 00:01:49]}
{[%emt 00:00:20]} 41. Kf4 {[%clk 00:00:32]} {[%emt 00:00:02]} Bb5 {[%clk
00:01:32]} {[%emt 00:00:26]} 42. Rc3 {[%clk 00:00:31]} {[%emt 00:00:11]} Nd4
{[%clk 00:01:41]} {[%emt 00:00:02]} 43. Ke5 {[%clk 00:00:35]} {[%emt 00:00:06]}
Ne2 {[%clk 00:00:52]} {[%emt 00:00:59]} 44. Re3 {[%clk 00:00:22]} {[%emt
00:00:22]} Nc1 {[%clk 00:00:18]} {[%emt 00:00:45]} 45. Kd6 {[%clk 00:00:20]}
{[%emt 00:00:11]} f5 {[%clk 00:00:18]} {[%emt 00:00:10]} 46. Kc7 {[%clk
00:00:15]} {[%emt 00:00:15]} f4 {[%clk 00:00:25]} {[%emt 00:00:04]} 47. Rf3
{[%clk 00:00:13]} {[%emt 00:00:12]} Ne2 {[%clk 00:00:33]} {[%emt 00:00:02]} 48.
Rf2 {[%clk 00:00:16]} {[%emt 00:00:07]} Nc3 {[%clk 00:00:39]} {[%emt 00:00:04]}
49. Kxb7 {[%clk 00:00:20]} {[%emt 00:00:06]} Nd5 {[%clk 00:00:48]} 50. a4
{[%clk 00:00:25]} {[%emt 00:00:05]} Bc4 {[%clk 00:00:50]} {[%emt 00:00:08]} 51.
b5 {[%clk 00:00:32]} {[%emt 00:00:03]} axb5 {[%clk 00:00:58]} {[%emt 00:00:02]}
52. a5 {[%clk 00:00:41]} b4 {[%clk 00:01:06]} {[%emt 00:00:02]} 53. Kc6 {[%clk
00:00:15]} {[%emt 00:00:36]} b3 {[%clk 00:00:57]} {[%emt 00:00:19]} 54. Kc5
{[%clk 00:00:23]} {[%emt 00:00:02]} Ne3 {[%clk 00:01:05]} {[%emt 00:00:01]} 55.
Kb4 {[%clk 00:00:20]} {[%emt 00:00:13]} Kh6 {[%clk 00:01:04]} {[%emt 00:00:12]}
56. Kc3 {[%clk 00:00:12]} {[%emt 00:00:18]} g5 {[%clk 00:01:11]} {[%emt
00:00:03]} 57. hxg5+ {[%clk 00:00:15]} {[%emt 00:00:06]} Kxg5 {[%clk 00:01:20]}
{[%emt 00:00:01]} 58. Rd2 {[%clk 00:00:15]} {[%emt 00:00:10]} f3 {[%clk
00:01:10]} {[%emt 00:00:21]} 59. Kd4 {[%clk 00:00:24]} Kf4 {[%clk 00:01:15]}
{[%emt 00:00:06]} 60. Rh2 {[%clk 00:00:15]} {[%emt 00:00:19]} Be2 {[%clk
00:01:13]} {[%emt 00:00:12]} 61. Rh8 {[%clk 00:00:11]} {[%emt 00:00:14]} b2
{[%clk 00:01:16]} {[%emt 00:00:07]} 62. Rb8 {[%clk 00:00:17]} {[%emt 00:00:04]}
f2 {[%clk 00:01:23]} {[%emt 00:00:02]} 63. a6 {[%clk 00:00:14]} {[%emt
00:00:14]} Bxa6 {[%clk 00:01:31]} {[%emt 00:00:02]} 64. Rxb2 {[%clk 00:00:19]}
{[%emt 00:00:05]} f1=Q {[%clk 00:01:39]} {[%emt 00:00:01]} 0-1

[Event "World Women Teams  Championship"]
[Site "Sitges, Spain"]
[Date "2021.09.28"]
[Round "4.8"]
[White "Dauletova, Gulmira"]
[Black "Buksa, Nataliya"]
[Result "0-1"]
[TimeControl "40+10"]
[WhiteElo "2184"]
[BlackElo "2184"]

1. e4 {[%clk 00:45:16]} {[%emt 00:00:03]} c5 {[%clk 00:45:19]} {[%emt
00:00:02]} 2. Nf3 {[%clk 00:45:18]} {[%emt 00:00:08]} Nc6 {[%clk 00:45:27]}
{[%emt 00:00:03]} 3. d4 {[%clk 00:43:10]} {[%emt 00:02:18]} cxd4 {[%clk
00:45:35]} {[%emt 00:00:02]} 4. Nxd4 {[%clk 00:43:17]} {[%emt 00:00:02]} Nf6
{[%clk 00:45:37]} {[%emt 00:00:08]} 5. Nc3 {[%clk 00:43:23]} {[%emt 00:00:03]}
e5 {[%clk 00:45:46]} {[%emt 00:00:03]} 6. Ndb5 {[%clk 00:43:17]} {[%emt
00:00:15]} d6 {[%clk 00:45:54]} {[%emt 00:00:02]} 7. Bg5 {[%clk 00:43:14]}
{[%emt 00:00:13]} a6 {[%clk 00:46:03]} {[%emt 00:00:02]} 8. Na3 {[%clk
00:43:16]} {[%emt 00:00:07]} b5 {[%clk 00:46:11]} {[%emt 00:00:03]} 9. Nd5
{[%clk 00:43:16]} {[%emt 00:00:09]} Be7 {[%clk 00:46:19]} {[%emt 00:00:02]} 10.
Bxf6 {[%clk 00:43:20]} {[%emt 00:00:06]} Bxf6 {[%clk 00:46:28]} {[%emt
00:00:02]} 11. c4 {[%clk 00:43:25]} {[%emt 00:00:05]} b4 {[%clk 00:46:21]}
{[%emt 00:00:17]} 12. Nc2 {[%clk 00:43:31]} {[%emt 00:00:03]} O-O {[%clk
00:46:16]} {[%emt 00:00:15]} 13. g3 {[%clk 00:43:10]} {[%emt 00:00:31]} a5
{[%clk 00:46:17]} {[%emt 00:00:10]} 14. Bg2 {[%clk 00:43:08]} {[%emt 00:00:11]}
g6 {[%clk 00:46:22]} {[%emt 00:00:05]} 15. O-O {[%clk 00:41:42]} {[%emt
00:01:41]} Bg7 {[%clk 00:46:25]} {[%emt 00:00:02]} 16. Qd3 {[%clk 00:41:26]}
{[%emt 00:00:26]} Be6 {[%clk 00:46:34]} {[%emt 00:00:02]} 17. a3 {[%clk
00:34:51]} {[%emt 00:06:46]} Qb8 {[%clk 00:43:00]} {[%emt 00:03:43]} 18. b3
{[%clk 00:29:10]} {[%emt 00:05:51]} bxa3 {[%clk 00:42:46]} {[%emt 00:00:24]} 19.
Rxa3 {[%clk 00:28:39]} {[%emt 00:00:40]} Bxd5 {[%clk 00:42:07]} {[%emt
00:00:50]} 20. Qxd5 {[%clk 00:25:20]} {[%emt 00:03:29]} Qb6 {[%clk 00:40:16]}
{[%emt 00:02:01]} 21. Rd1 {[%clk 00:19:24]} {[%emt 00:06:06]} Rab8 {[%clk
00:37:09]} {[%emt 00:03:16]} 22. Bh3 {[%clk 00:16:35]} {[%emt 00:02:59]} Rfd8
{[%clk 00:33:17]} {[%emt 00:04:01]} 23. Rd3 {[%clk 00:15:35]} {[%emt 00:01:10]}
Bh6 {[%clk 00:31:03]} {[%emt 00:02:25]} 24. Rf3 {[%clk 00:13:59]} {[%emt
00:01:46]} Rb7 {[%clk 00:31:11]} {[%emt 00:00:02]} 25. Ra1 {[%clk 00:12:42]}
{[%emt 00:01:26]} Kg7 {[%clk 00:25:36]} {[%emt 00:05:46]} 26. Bf1 {[%clk
00:12:23]} {[%emt 00:00:29]} Kg8 {[%clk 00:21:12]} {[%emt 00:04:34]} 27. h4
{[%clk 00:12:19]} {[%emt 00:00:14]} Bf8 {[%clk 00:20:18]} {[%emt 00:01:04]} 28.
h5 {[%clk 00:11:53]} {[%emt 00:00:36]} Qc5 {[%clk 00:20:18]} {[%emt 00:00:10]}
29. hxg6 {[%clk 00:09:33]} {[%emt 00:02:30]} hxg6 {[%clk 00:20:26]} {[%emt
00:00:02]} 30. Rf6 {[%clk 00:04:50]} {[%emt 00:04:52]} Qxd5 {[%clk 00:15:38]}
{[%emt 00:04:59]} 31. cxd5 {[%clk 00:04:58]} {[%emt 00:00:02]} Nb8 {[%clk
00:10:47]} {[%emt 00:05:00]} 32. Rf3 {[%clk 00:04:10]} {[%emt 00:00:58]} Nd7
{[%clk 00:10:56]} {[%emt 00:00:01]} 33. Rxa5 {[%clk 00:03:19]} {[%emt
00:01:02]} Nc5 {[%clk 00:11:05]} 34. Rb5 {[%clk 00:00:29]} {[%emt 00:03:01]}
Rxb5 {[%clk 00:08:00]} {[%emt 00:03:15]} 35. Bxb5 {[%emt 00:00:01]} Rb8 {[%clk
00:08:09]} 36. Bc4 {[%clk 00:00:13]} {[%emt 00:00:35]} Nxe4 {[%clk 00:08:15]}
{[%emt 00:00:04]} 37. Na3 {[%clk 00:00:13]} {[%emt 00:00:10]} Bh6 {[%clk
00:05:42]} {[%emt 00:02:43]} 38. Nb5 {[%clk 00:00:20]} {[%emt 00:00:03]} Bd2
{[%clk 00:05:51]} 39. Rd3 {[%clk 00:00:18]} {[%emt 00:00:12]} Bb4 {[%clk
00:05:59]} {[%emt 00:00:01]} 40. Kg2 {[%clk 00:00:20]} {[%emt 00:00:09]} Ra8
{[%clk 00:05:55]} {[%emt 00:00:14]} 41. Re3 {[%clk 00:00:15]} {[%emt 00:00:15]}
f5 {[%clk 00:05:44]} {[%emt 00:00:20]} 42. Re2 {[%clk 00:00:24]} {[%emt
00:00:01]} Ra1 {[%clk 00:05:00]} {[%emt 00:00:54]} 43. Nc7 {[%clk 00:00:23]}
{[%emt 00:00:12]} Kf7 {[%clk 00:03:59]} {[%emt 00:01:11]} 44. Na6 {[%clk
00:00:32]} {[%emt 00:00:01]} Bc3 {[%clk 00:03:54]} {[%emt 00:00:15]} 45. Rc2
{[%clk 00:00:23]} {[%emt 00:00:18]} Bd4 {[%clk 00:03:38]} {[%emt 00:00:25]} 46.
b4 {[%clk 00:00:31]} {[%emt 00:00:03]} g5 {[%clk 00:03:37]} {[%emt 00:00:11]}
47. Bd3 {[%clk 00:00:34]} {[%emt 00:00:06]} Nxf2 {[%clk 00:01:56]} {[%emt
00:01:51]} 48. Rxf2 {[%clk 00:00:24]} {[%emt 00:00:20]} Bxf2 {[%clk 00:02:05]}
{[%emt 00:00:01]} 49. Kxf2 {[%clk 00:00:33]} {[%emt 00:00:01]} e4 {[%clk
00:02:14]} 50. Be2 {[%clk 00:00:42]} {[%emt 00:00:02]} Rb1 {[%clk 00:02:19]}
{[%emt 00:00:04]} 51. b5 {[%clk 00:00:48]} {[%emt 00:00:04]} f4 {[%clk
00:02:17]} {[%emt 00:00:12]} 52. gxf4 gxf4 {[%clk 00:02:26]} 53. Nb8 {[%clk
00:00:22]} {[%emt 00:00:44]} Rb2 {[%clk 00:02:19]} {[%emt 00:00:17]} 54. Kf1
{[%clk 00:00:15]} {[%emt 00:00:18]} f3 {[%clk 00:02:25]} {[%emt 00:00:04]} 55.
Bd1 {[%clk 00:00:14]} {[%emt 00:00:11]} Rb1 {[%clk 00:01:53]} {[%emt 00:00:42]}
56. Ke1 {[%clk 00:00:23]} e3 {[%clk 00:02:01]} {[%emt 00:00:02]} 0-1

[Event "World Women Teams  Championship"]
[Site "Sitges, Spain"]
[Date "2021.09.28"]
[Round "4.10"]
[White "Schneider, Jana"]
[Black "Lujan, Carolina"]
[Result "0-1"]
[TimeControl "40+10"]
[WhiteElo "2138"]
[BlackElo "2375"]

1. e4 c5 2. Nf3 Nc6 3. Bb5 e6 4. d4 cxd4 5. Nxd4 Nge7 6. Be3 Ng6 7. Be2 Be7 8.
c4 Nxd4 9. Qxd4 O-O 10. Nc3 b6 11. O-O Bf6 12. Qd2 d5 13. cxd5 {[%clk
00:45:16]} Bb7 {[%clk 00:30:43]} {[%emt 00:38:26]} 14. f3 {[%emt 00:10:08]}
Bxc3 {[%clk 00:22:53]} {[%emt 00:00:59]} 0-1

[Event "World Women Teams  Championship"]
[Site "Sitges, Spain"]
[Date "2021.09.28"]
[Round "4.11"]
[White "Lubbe, Melanie"]
[Black "Arribas Robaina, Maritza"]
[Result "1/2-1/2"]
[TimeControl "40+10"]
[WhiteElo "2300"]
[BlackElo "2261"]

1. e4 {[%clk 00:45:18]} {[%emt 00:00:01]} d6 {[%clk 00:45:19]} {[%emt
00:00:01]} 2. d4 {[%clk 00:45:26]} {[%emt 00:00:03]} Nf6 {[%clk 00:45:27]}
{[%emt 00:00:01]} 3. Nc3 {[%clk 00:45:34]} {[%emt 00:00:02]} e5 {[%clk
00:45:36]} {[%emt 00:00:02]} 4. Nf3 {[%clk 00:45:16]} {[%emt 00:00:28]} Nbd7
{[%clk 00:45:32]} {[%emt 00:00:13]} 5. Bc4 {[%clk 00:45:07]} {[%emt 00:00:19]}
Be7 {[%clk 00:45:19]} {[%emt 00:00:24]} 6. O-O {[%clk 00:45:00]} {[%emt
00:00:17]} O-O {[%clk 00:45:20]} {[%emt 00:00:07]} 7. Re1 {[%clk 00:43:11]}
{[%emt 00:02:00]} c6 {[%clk 00:45:21]} {[%emt 00:00:09]} 8. a4 {[%clk
00:43:14]} {[%emt 00:00:08]} h6 {[%clk 00:44:51]} {[%emt 00:00:39]} 9. h3
{[%clk 00:42:43]} {[%emt 00:00:41]} Qc7 {[%emt 00:01:32]} 10. dxe5 {[%clk
00:39:37]} {[%emt 00:02:16]} dxe5 {[%clk 00:44:32]} {[%emt 00:00:06]} 11. Nh4
{[%clk 00:39:10]} {[%emt 00:00:37]} Nc5 {[%clk 00:43:20]} {[%emt 00:01:22]} 12.
Ng6 {[%clk 00:37:04]} {[%emt 00:02:17]} Rd8 {[%clk 00:43:20]} {[%emt 00:00:10]}
13. Nxe7+ {[%clk 00:36:43]} {[%emt 00:00:31]} Qxe7 {[%clk 00:43:27]} {[%emt
00:00:02]} 14. Qf3 {[%clk 00:36:47]} {[%emt 00:00:06]} Be6 {[%clk 00:43:06]}
{[%emt 00:00:32]} 15. Bf1 {[%clk 00:36:35]} {[%emt 00:00:22]} Ncd7 {[%clk
00:39:05]} {[%emt 00:04:12]} 16. b3 {[%clk 00:32:43]} {[%emt 00:04:03]} Nf8
{[%clk 00:38:17]} {[%emt 00:00:57]} 17. Ba3 {[%clk 00:31:26]} {[%emt 00:01:27]}
Qc7 {[%clk 00:38:25]} {[%emt 00:00:03]} 18. Rad1 {[%clk 00:30:31]} {[%emt
00:01:04]} Ng6 {[%clk 00:37:27]} {[%emt 00:01:08]} 19. g3 {[%clk 00:30:14]}
{[%emt 00:00:27]} Rxd1 {[%clk 00:36:48]} {[%emt 00:00:49]} 20. Rxd1 {[%clk
00:30:20]} {[%emt 00:00:05]} Rd8 {[%clk 00:36:57]} {[%emt 00:00:01]} 21. Bc5
{[%clk 00:26:41]} {[%emt 00:03:48]} b6 {[%clk 00:35:23]} {[%emt 00:01:44]} 22.
Be3 {[%clk 00:26:48]} {[%emt 00:00:03]} Rxd1 {[%clk 00:35:04]} {[%emt
00:00:28]} 23. Qxd1 {[%clk 00:26:49]} {[%emt 00:00:08]} Qe7 {[%clk 00:31:18]}
{[%emt 00:03:57]} 24. a5 {[%clk 00:23:00]} {[%emt 00:03:59]} bxa5 {[%clk
00:30:05]} {[%emt 00:01:24]} 25. Qd3 {[%clk 00:22:02]} {[%emt 00:01:07]} Nh7
{[%clk 00:26:50]} {[%emt 00:03:25]} 26. h4 {[%clk 00:19:01]} {[%emt 00:03:11]}
Nf6 {[%clk 00:26:43]} {[%emt 00:00:17]} 27. Na4 {[%clk 00:18:25]} {[%emt
00:00:47]} Bg4 {[%clk 00:23:37]} {[%emt 00:03:15]} 28. Bc5 {[%clk 00:15:09]}
{[%emt 00:03:26]} Qc7 {[%clk 00:23:10]} {[%emt 00:00:37]} 29. f3 {[%clk
00:14:58]} {[%emt 00:00:21]} Be6 {[%clk 00:20:43]} {[%emt 00:02:37]} 30. Qe3
{[%clk 00:15:05]} {[%emt 00:00:03]} Qd8 {[%clk 00:19:00]} {[%emt 00:01:53]} 31.
Bxa7 {[%clk 00:14:32]} {[%emt 00:00:44]} Qd1 {[%clk 00:18:49]} {[%emt
00:00:21]} 32. Qd3 {[%clk 00:14:30]} {[%emt 00:00:11]} Qc1 {[%clk 00:17:21]}
{[%emt 00:01:38]} 33. Be3 {[%clk 00:14:18]} {[%emt 00:00:22]} Qe1 {[%clk
00:17:24]} {[%emt 00:00:06]} 34. Bf2 {[%clk 00:14:12]} {[%emt 00:00:17]} Qc1
{[%clk 00:17:33]} {[%emt 00:00:02]} 35. Kh2 {[%clk 00:13:18]} {[%emt 00:01:03]}
Nd7 {[%clk 00:17:12]} {[%emt 00:00:31]} 36. Nc5 {[%clk 00:12:36]} {[%emt
00:00:53]} Nxc5 {[%clk 00:16:56]} {[%emt 00:00:26]} 37. Bxc5 {[%clk 00:12:44]}
{[%emt 00:00:02]} Bxb3 {[%clk 00:16:42]} {[%emt 00:00:23]} 38. h5 {[%clk
00:08:32]} {[%emt 00:04:22]} Nh8 {[%clk 00:16:04]} {[%emt 00:00:48]} 39. Qxb3
{[%clk 00:04:10]} {[%emt 00:04:33]} Qxf1 {[%clk 00:16:10]} {[%emt 00:00:04]} 40.
Qb8+ {[%clk 00:03:09]} {[%emt 00:01:11]} Kh7 {[%clk 00:16:18]} {[%emt
00:00:02]} 41. Qxe5 {[%clk 00:03:12]} {[%emt 00:00:07]} Qxf3 {[%clk 00:15:07]}
{[%emt 00:01:20]} 42. Bd4 {[%clk 00:02:24]} {[%emt 00:00:59]} f6 {[%clk
00:15:12]} {[%emt 00:00:05]} 43. Qe8 {[%clk 00:01:28]} {[%emt 00:01:05]} Qe2+
{[%clk 00:14:50]} {[%emt 00:00:32]} 44. Kh3 {[%clk 00:01:37]} Qc4 {[%clk
00:14:32]} {[%emt 00:00:28]} 45. c3 {[%clk 00:01:38]} {[%emt 00:00:10]} Nf7
{[%clk 00:13:56]} {[%emt 00:00:46]} 46. Kg2 {[%clk 00:01:28]} {[%emt 00:00:19]}
a4 {[%clk 00:14:04]} {[%emt 00:00:02]} 47. Qe7 {[%clk 00:01:23]} {[%emt
00:00:15]} Ne5 {[%clk 00:13:26]} {[%emt 00:00:48]} 48. Kf2 {[%clk 00:01:19]}
{[%emt 00:00:14]} Qa2+ {[%clk 00:10:30]} {[%emt 00:03:06]} 49. Ke3 {[%clk
00:01:25]} {[%emt 00:00:05]} Nc4+ {[%clk 00:08:42]} {[%emt 00:01:57]} 50. Kf3
{[%clk 00:01:30]} {[%emt 00:00:05]} Qb1 {[%clk 00:07:34]} {[%emt 00:01:18]} 51.
Qe8 {[%clk 00:01:16]} {[%emt 00:00:25]} Qf1+ {[%clk 00:05:34]} {[%emt
00:02:09]} 52. Kg4 {[%clk 00:01:17]} {[%emt 00:00:09]} Qe2+ {[%clk 00:04:40]}
{[%emt 00:01:04]} 53. Kh3 {[%clk 00:01:12]} {[%emt 00:00:15]} Qf1+ {[%clk
00:04:01]} {[%emt 00:00:48]} 54. Kg4 {[%clk 00:01:21]} {[%emt 00:00:12]} Qd1+
{[%clk 00:03:03]} {[%emt 00:01:18]} 55. Kf4 {[%clk 00:01:12]} {[%emt 00:00:19]}
Qd2+ {[%clk 00:02:47]} {[%emt 00:00:26]} 56. Kf3 {[%clk 00:01:06]} {[%emt
00:00:17]} Qd1+ {[%clk 00:02:13]} {[%emt 00:00:44]} 57. Kf4 {[%clk 00:00:58]}
{[%emt 00:00:18]} Qf1+ {[%clk 00:02:09]} {[%emt 00:00:13]} 58. Kg4 {[%clk
00:00:58]} {[%emt 00:00:11]} Qd1+ {[%clk 00:01:49]} {[%emt 00:00:29]} 59. Kf4
{[%clk 00:01:05]} {[%emt 00:00:03]} Qf1+ {[%clk 00:01:37]} {[%emt 00:00:22]} 60.
Kg4 {[%clk 00:01:14]} {[%emt 00:00:01]} Qe2+ {[%clk 00:01:46]} {[%emt
00:00:01]} 61. Kh3 {[%clk 00:01:09]} {[%emt 00:00:15]} Qf1+ {[%clk 00:01:05]}
{[%emt 00:00:50]} 62. Kg4 {[%clk 00:01:15]} {[%emt 00:00:05]} Qd1+ {[%clk
00:01:14]} {[%emt 00:00:01]} 63. Kf4 {[%clk 00:01:14]} {[%emt 00:00:11]} Qf1+
{[%clk 00:01:21]} {[%emt 00:00:03]} 64. Kg4 {[%clk 00:01:15]} {[%emt 00:00:09]}
Qd1+ {[%clk 00:01:29]} {[%emt 00:00:02]} 65. Kf4 {[%clk 00:01:21]} {[%emt
00:00:04]} Qd2+ {[%clk 00:01:34]} {[%emt 00:00:05]} 66. Kf3 {[%clk 00:01:04]}
{[%emt 00:00:27]} Qd3+ {[%clk 00:01:30]} {[%emt 00:00:14]} 67. Kf2 {[%clk
00:00:56]} {[%emt 00:00:18]} Qc2+ {[%clk 00:01:14]} {[%emt 00:00:26]} 68. Kf3
{[%clk 00:00:55]} {[%emt 00:00:11]} Qd1+ {[%clk 00:01:08]} {[%emt 00:00:16]}
1/2-1/2

[Event "World Women Teams  Championship"]
[Site "Sitges, Spain"]
[Date "2021.09.28"]
[Round "4.12"]
[White "Ouellet, Maili-Jade"]
[Black "Klek, Hanna Marie"]
[Result "1/2-1/2"]
[TimeControl "40+10"]
[WhiteElo "2113"]
[BlackElo "2331"]

1. d4 {[%clk 00:45:18]} Nf6 {[%clk 00:45:18]} 2. c4 {[%clk 00:45:18]} g6 {[%clk
00:45:18]} 3. Nc3 {[%clk 00:45:18]} Bg7 {[%clk 00:45:18]} 4. e4 {[%clk
00:45:18]} d6 {[%clk 00:45:18]} 5. f3 {[%clk 00:45:18]} O-O {[%clk 00:45:18]} 6.
Be3 {[%clk 00:45:18]} Nbd7 {[%clk 00:45:18]} 7. Nge2 {[%clk 00:45:18]} a6
{[%clk 00:45:18]} 8. Qd2 {[%clk 00:45:18]} b5 {[%clk 00:45:18]} 9. cxb5 {[%clk
00:45:18]} axb5 {[%clk 00:45:18]} 10. Nxb5 {[%clk 00:45:18]} c6 {[%clk
00:45:18]} 11. Nbc3 {[%clk 00:45:18]} e5 {[%clk 00:45:18]} 12. Rd1 {[%clk
00:45:18]} d5 {[%clk 00:45:18]} 13. exd5 {[%emt 00:30:12]} cxd5 {[%clk
00:40:27]} {[%emt 00:00:13]} 14. Ng3 {[%clk 00:32:27]} Re8 {[%clk 00:40:27]} 15.
Be2 {[%clk 00:25:27]} {[%emt 00:13:59]} e4 {[%clk 00:29:43]} 16. fxe4 {[%clk
00:25:27]} Nb6 {[%clk 00:29:43]} {[%emt 00:08:27]} 17. e5 {[%clk 00:22:48]}
{[%emt 00:01:40]} Ng4 {[%clk 00:29:46]} 18. Bf4 {[%clk 00:18:59]} {[%emt
00:01:41]} f6 19. O-O {[%emt 00:04:08]} fxe5 20. dxe5 Nxe5 {[%emt 00:01:15]} 21.
Nxd5 {[%emt 00:05:07]} Rxa2 {[%clk 00:21:08]} {[%emt 00:00:11]} 22. Nc3 {[%clk
00:15:28]} {[%emt 00:02:34]} Qxd2 {[%clk 00:20:59]} {[%emt 00:00:19]} 23. Rxd2
{[%clk 00:15:35]} {[%emt 00:00:03]} Ra5 {[%clk 00:20:42]} {[%emt 00:00:26]} 24.
b4 {[%clk 00:12:39]} {[%emt 00:03:06]} Ra3 {[%clk 00:15:18]} {[%emt 00:05:35]}
25. Nb5 {[%clk 00:11:52]} {[%emt 00:00:58]} Ra4 {[%clk 00:15:15]} {[%emt
00:00:12]} 26. Nd6 {[%clk 00:08:14]} {[%emt 00:03:47]} Rd8 {[%clk 00:13:58]}
{[%emt 00:01:28]} 27. Nxc8 {[%clk 00:07:43]} {[%emt 00:00:40]} Rxc8 {[%clk
00:13:49]} {[%emt 00:00:20]} 28. b5 {[%clk 00:06:07]} {[%emt 00:01:45]} Nec4
{[%clk 00:13:07]} {[%emt 00:00:53]} 29. Rdd1 {[%clk 00:02:51]} {[%emt
00:03:26]} Rb4 {[%clk 00:10:24]} {[%emt 00:02:54]} 30. Rb1 {[%clk 00:02:22]}
{[%emt 00:00:38]} Bb2 {[%clk 00:10:27]} {[%emt 00:00:07]} 31. Bg4 {[%clk
00:01:35]} {[%emt 00:00:56]} Re8 {[%clk 00:10:14]} {[%emt 00:00:23]} 32. Bh6
{[%clk 00:00:53]} {[%emt 00:00:53]} Bd4+ {[%clk 00:09:43]} {[%emt 00:00:41]} 33.
Kh1 {[%clk 00:00:53]} {[%emt 00:00:10]} Rxb1 {[%clk 00:09:43]} {[%emt
00:00:10]} 34. Rxb1 {[%clk 00:01:02]} Na3 {[%clk 00:08:38]} {[%emt 00:01:15]}
35. Rf1 {[%clk 00:01:01]} {[%emt 00:00:10]} Nxb5 {[%clk 00:07:59]} {[%emt
00:00:50]} 36. Be6+ {[%clk 00:00:32]} {[%emt 00:00:39]} Kh8 {[%clk 00:08:08]}
{[%emt 00:00:01]} 37. Bf7 {[%clk 00:00:40]} {[%emt 00:00:02]} Ra8 {[%clk
00:07:56]} {[%emt 00:00:22]} 38. Ne4 {[%clk 00:00:21]} {[%emt 00:00:29]} Ra1
{[%clk 00:05:05]} {[%emt 00:03:02]} 39. Rxa1 {[%clk 00:00:30]} {[%emt
00:00:01]} Bxa1 {[%clk 00:05:14]} {[%emt 00:00:01]} 40. g4 {[%clk 00:00:21]}
{[%emt 00:00:18]} Be5 {[%clk 00:04:16]} {[%emt 00:01:08]} 41. Be3 {[%clk
00:00:16]} {[%emt 00:00:16]} Nc8 {[%clk 00:04:16]} {[%emt 00:00:08]} 42. Nc5
{[%clk 00:00:17]} {[%emt 00:00:09]} Ncd6 {[%clk 00:04:17]} {[%emt 00:00:10]} 43.
Bd5 {[%clk 00:00:21]} {[%emt 00:00:06]} Nc3 {[%clk 00:04:21]} {[%emt 00:00:07]}
44. Bb3 {[%clk 00:00:26]} {[%emt 00:00:04]} Nce4 {[%clk 00:04:23]} {[%emt
00:00:08]} 45. Ne6 {[%clk 00:00:28]} {[%emt 00:00:08]} h5 {[%clk 00:03:29]}
{[%emt 00:01:42]} 1/2-1/2